Cogmind - Beta 14 @@@ ROGUE MODE // 2025.03.18 @ 17:56:34 Player: canerib Result: Self-destructed Performance ------------- Evolutions (1) 500 Regions Visited (2) 400 Robots Destroyed (22) 110 Value Destroyed (344) 344 Prototype IDs (1) 20 Alien Tech Used (0) 0 Bonus (0) 0 TOTAL SCORE: 1374 Bonus ------- None Cogmind --------- Core Integrity 341/400 Matter 193/300 Energy 250/250 System Corruption 0% Temperature Cool (30) Movement Walking (120) Location -9/Materials Parts ------- > --- POWER (1) -------- Ion Engine > --- PROPULSION (2) --- Aluminum Leg Aluminum Leg > --- UTILITY (4) ------ Medium Storage Unit Signal Interpreter Utility Shielding > --- WEAPON (2) ------- Medium Laser > --- INVENTORY (10) --- Light Ion Engine Aluminum Leg Aluminum Leg Aluminum Leg Improved Terrain Scanner Light Armor Plating Advanced Beam Cannon Grenade Launcher Peak State ------------ > --- POWER ------------ Ion Engine > --- PROPULSION ------- Aluminum Leg Aluminum Leg > --- UTILITY ---------- Medium Storage Unit Sensor Array Signal Interpreter Utility Shielding > --- WEAPON ----------- Assault Rifle Light Assault Rifle > --- INVENTORY -------- Light Ion Engine Aluminum Leg Improved Terrain Scanner Light Armor Plating Medium Laser Advanced Beam Cannon Grenade Launcher [Rating: 10] Favorites ----------- Power Ion Engine Engine Ion Engine Propulsion Light Treads Treads Light Treads Leg Aluminum Leg Utility Seismic Detector Device Seismic Detector Storage Small Storage Unit Processor Signal Interpreter Protection Utility Shielding Weapon Assault Rifle Energy Gun Medium Laser Ballistic Gun Assault Rifle Build | -11 -10 -9 ------- Run | Yrd Mat Mat Slots Evolved 2 | . . 2 Power . | . . . Propulsion . | . . . Utility 2 | . . 2 Weapon . | . . . Parts Attached 21 | 8 6 7 Power 2 | 2 . . Engine 2 | 2 . . Core . | . . . Reactor . | . . . Propulsion 6 | 2 2 2 Treads 2 | 2 . . Leg 4 | . 2 2 Wheel . | . . . Hover . | . . . Flight . | . . . Utility 8 | 2 2 4 Device 3 | 1 1 1 Storage 2 | 1 1 . Processor 1 | . . 1 Hackware . | . . . Protection 2 | . . 2 Artifact . | . . . Weapon 5 | 2 2 1 Energy Gun 1 | . . 1 Energy Cannon . | . . . Ballistic Gun 4 | 2 2 . Ballistic Cannon . | . . . Launcher . | . . . Special Weapon . | . . . Impact Weapon . | . . . Slashing Weapon . | . . . Piercing Weapon . | . . . Special Melee Weapon . | . . . Unidentified Prototypes . | . . . Parts Lost 3 | . . 3 Power . | . . . Propulsion . | . . . Utility 1 | . . 1 Weapon 2 | . . 2 Highest Loss Streak 3 | . . 3 To Critical Strikes . | . . . Average Slot Usage (%) 99 | . 100 98 Engine 13 | . 14 11 Treads 16 | . 22 . Leg 9 | . 5 22 Device 12 | . 14 9 Storage 13 | . 14 11 Processor 2 | . . 11 Protection 2 | . . 12 Ballistic Gun 26 | . 28 20 Peak Build Rating 10 | 7 8 10 Average Rating 7 | 5 7 9 On Entrance 5 | . 7 8 Naked Turns . | . . . Heaviest Build 22 | 14 19 22 Greatest Support 40 | 40 40 20 Greatest Overweight (x) 1 | . . 1 Average Overweight (x) . | . . . Largest Inventory Capacity 10 | 8 10 10 Average Capacity 8 | 7 8 10 Most Carried 9 | 3 8 9 Average Carried 5 | 1 5 7 Final Capacity 10 | 8 10 10 Final Carried 8 | 3 8 8 Class Distribution -------------------- 100% | Mutant Dominant Class ---------------- Mutant | -10/Materials Mutant | -9/Materials Resources | -11 -10 -9 ----------- Run | Yrd Mat Mat Matter Collected 603 | 332 184 87 Remotely . | . . . Salvage Created 554 | 139 317 98 Parts 48 | 8 36 4 Haulers Intercepted . | . . . Recyclers Shooed 2 | 1 1 . Parts Field Recycled . | . . . Retrieved Matter . | . . . Parts Self-Destructed . | . . . Prevented . | . . . Kills | -11 -10 -9 ------- Run | Yrd Mat Mat Combat Hostiles Destroyed 12 | . 10 2 Guns 12 | . 10 2 Classes Destroyed 7 | 2 5 . Worker 3 | . 3 . Builder 1 | . 1 . Tunneler 3 | 3 . . Recycler 1 | 1 . . Watcher 2 | . 1 1 Swarmer 6 | . 6 . Grunt 6 | . 4 2 Best Kill Streak 4 | 3 4 2 Combat Bots Only 3 | . 3 2 Max Kills in Single Turn 1 | 1 1 1 Gunslinging . | . . . Exploded . | . . . Melee . | . . . Uniques/NPCs Destroyed . | . . . Combat | -11 -10 -9 -------- Run | Yrd Mat Mat Hostile Shots Fired 72 | . 44 28 Missed 19 | . 12 7 Damage Taken 667 | . 310 357 Core 107 | . 48 59 Absorbed by Shields . | . . . Redirected to Shielding 15 | . . 15 Core Remaining (%) 90 | 100 80 . Volleys Fired 82 | 13 45 24 Largest 2 | 2 2 2 Hottest 50 | 40 40 50 Shots Fired 160 | 26 90 44 Gun 160 | 26 90 44 Cannon . | . . . Launcher . | . . . Special . | . . . Kinetic 157 | 26 90 41 Thermal 3 | . . 3 Explosive . | . . . Electromagnetic . | . . . Robot Hit Streak 10 | 10 8 7 Robot Miss Streak 5 | 2 5 5 Penetration Max . | . . . Secondary Targets 2 | . 2 . Max Gunslinging Chain 1 | . 1 . Shots Hit Robots 100 | 16 59 25 Core Hits 39 | 6 24 9 Critical Kills 1 | . 1 . Critical Parts Destroyed . | . . . Critical Strikes 1 | . 1 . Destroy 1 | . 1 . Melee Attacks . | . . . Impact . | . . . Slashing . | . . . Piercing . | . . . Sneak Attacks . | . . . Combat Hostiles . | . . . Follow-up Attacks . | . . . Damage Inflicted 1065 | 170 623 272 Guns 1065 | 170 623 272 Cannons . | . . . Explosions . | . . . Melee . | . . . Ramming . | . . . Kinetic 1041 | 170 623 248 Thermal 24 | . . 24 Explosive . | . . . Electromagnetic . | . . . Impact . | . . . Slashing . | . . . Piercing . | . . . Highest Corruption . | . . . Average Corruption . | . . . Corruption Purged . | . . . Corruption Blocked . | . . . Overload Shots . | . . . Overflow Damage . | . . . Projectiles . | . . . Explosions . | . . . Melee . | . . . Knockbacks . | . . . Impact . | . . . Kinetic . | . . . Secondary . | . . . Self-Inflicted Damage . | . . . Shots . | . . . Rammed . | . . . Targets Rammed . | . . . Kicked . | . . . Crushed . | . . . Highest Temperature 30 | . 12 30 Average Temperature 8 | . 7 9 Received Heat Transfer 228 | . 96 132 Siege Activations . | . . . Robots Corrupted . | . . . Combat Hostiles . | . . . Parts Fried . | . . . Impact Corruptions . | . . . Robots Melted . | . . . Combat Hostiles . | . . . Parts Melted . | . . . Heat Transferred 74 | . . 74 Parts Sabotaged . | . . . Parts Stolen . | . . . Parts Stripped . | . . . Power Chain Reactions . | . . . Alert | -11 -10 -9 ------- Run | Yrd Mat Mat Peak Influence 225 | 20 225 166 Initial 94 | . 13 94 Average 96 | 7 102 129 Maximum Alert Level 1 | . 1 . Low Security (%) 85 | 100 77 100 Level 1 14 | . 22 . Level 2 . | . . . Level 3 . | . . . Level 4 . | . . . Level 5 . | . . . High Security . | . . . Max Security . | . . . Squads Dispatched 1 | . 1 . Investigation . | . . . Extermination . | . . . Reinforcement 1 | . 1 . Assault . | . . . Garrison . | . . . Intercept . | . . . Searches Triggered . | . . . Construction Impeded . | . . . Haulers Reinforced . | . . . Active Scanning Responses . | . . . Cargo Convoy Interrupts . | . . . Stealth | -11 -10 -9 --------- Run | Yrd Mat Mat Distress Signals 3 | . 1 2 Communications Jammed . | . . . Distress Signals . | . . . Times Spotted 32 | . 18 14 Peak Tracking Total 11 | . 4 11 Tactical Retreats 1 | . 1 . Traps | -11 -10 -9 ------- Run | Yrd Mat Mat Traps Triggered 1 | . 1 . Indirectly . | . . . Trap Hack Attempts . | . . . Triggered . | . . . Disarmed . | . . . Reprogrammed . | . . . Reused . | . . . Traps Extracted . | . . . Installed . | . . . Triggered . | . . . Machines | -11 -10 -9 ---------- Run | Yrd Mat Mat Machines Disabled . | . . . Max in Single Turn . | . . . Machines Repaired . | . . . Machines Dismantled . | . . . Machines Sabotaged . | . . . Overloaded Fab Kills . | . . . Hacking | -11 -10 -9 --------- Run | Yrd Mat Mat Machines Accessed 4 | . 2 2 Terminals 3 | . 2 1 Fabricators . | . . . Repair Stations . | . . . Recycling Units . | . . . Scanalyzers 1 | . . 1 Garrison Access . | . . . Total Hacks 11 | . 5 6 Successful 4 | . . 4 Failed 7 | . 5 2 Catastrophic . | . . . Database Lockouts . | . . . Manual 5 | . 4 1 Terminals 6 | . 5 1 Fabricators . | . . . Repair Stations . | . . . Recycling Units . | . . . Scanalyzers 5 | . . 5 Garrison Access . | . . . Terminal Hacks . | . . . Fabricator Hacks . | . . . Repair Station Hacks . | . . . Recycling Unit Hacks . | . . . Scanalyzer 4 | . . 4 Insert Component 2 | . . 2 Analyze 2 | . . 2 Garrison Access Hacks . | . . . Unauthorized Hacks . | . . . Terminals . | . . . Fabricators . | . . . Repair Stations . | . . . Recycling Units . | . . . Scanalyzers . | . . . Garrison Access . | . . . Data Cores Recovered . | . . . Used . | . . . Hacking Detections 4 | . 2 2 Full Trace Events 1 | . . 1 Feedback Events . | . . . Feedback Blocked . | . . . Robot Schematics Acquired . | . . . Robots Built . | . . . Authchips . | . . . Time . | . . . Total Robot Build Rating . | . . . Part Schematics Acquired 2 | . . 2 Parts Built . | . . . Authchips . | . . . Time . | . . . Total Part Build Rating . | . . . Parts Repaired . | . . . Time . | . . . Parts Recycled . | . . . Recycled Matter . | . . . Retrieved Matter . | . . . Retrieved Components . | . . . Parts Scanalyzed 2 | . . 2 Part Schematics Acquired 2 | . . 2 Parts Damaged . | . . . Bothacking | -11 -10 -9 ------------ Run | Yrd Mat Mat Used RIF Installer . | . . . Robots Hacked . | . . . Non-combat . | . . . Combat . | . . . Robot Hacks Applied . | . . . Relay Couplers Released . | . . . Fabnet Peak Effective % . | . . . Robots Rewired . | . . . Allies Hacked . | . . . Hacks Repelled . | . . . Allies | -11 -10 -9 -------- Run | Yrd Mat Mat Total Allies . | . . . Largest Group . | . . . Highest-Rated Group . | . . . Highest-Rated Ally . | . . . Total Orders . | . . . Ally Attacks . | . . . Total Damage . | . . . Kills . | . . . Allies Corrupted . | . . . Allies Melted . | . . . Intel | -11 -10 -9 ------- Run | Yrd Mat Mat Robot Analysis Total . | . . . Derelict Logs Recovered . | . . . Drone Launches . | . . . Drone Recoveries . | . . . Exploration | -11 -10 -9 ------------- Run | Yrd Mat Mat Turns Passed 1186 | 143 786 257 Spaces Moved 618 | 60 413 145 Core 2 | 2 . . Treads 358 | 58 300 . Legs 258 | . 113 145 Wheels . | . . . Hover . | . . . Flight . | . . . Fastest Speed 50 | 50 120 120 Average Speed 143 | 156 149 122 Slowest Speed 190 | 160 160 190 Overloaded Moves . | . . . Propulsion Burnouts . | . . . Robots Hopped . | . . . Cave-ins Triggered . | . . . Exploration Rate (%) 32 | 5 70 23 Regions Visited 2 Branch Regions . Pre-discovered Areas . | . . . Known Exits Taken . | . . . Unknown Exits Taken 2 | 1 1 . Scrap Searched . | . . . Spaces Dug . | . . . Terrain Destroyed . | . . . Melee . | . . . Projectile . | . . . AOE . | . . . Terrain Rammed . | . . . Walls Destroyed . | . . . Machines Disabled . | . . . Actions | -11 -10 -9 --------- Run | Yrd Mat Mat Total 768 | 82 505 181 Wait 26 | . 22 4 Move 616 | 59 412 145 Hop . | . . . Pick Up 15 | 2 12 1 Fast Attach 10 | 7 3 . Attach 5 | . 2 3 Detach . | . . . Swap 6 | 1 1 4 Drop 8 | . 8 . Fire 82 | 13 45 24 Melee . | . . . Ram . | . . . Kick . | . . . Crush . | . . . Escape Stasis . | . . . Rewire . | . . . Trap . | . . . Miscellaneous . | . . . Route ------- -11/Scrapyard -10/Materials (discovered 3 exits: *Mat x2 / [*Min]) -9/Materials History --------- Turn | Location | Event 18 | -11/Scrapyard | Discovered new exit (range 16) 144 | -11/Scrapyard | Entered Materials 154 | -10/Materials | Discovered new exit (range 16) 316 | -10/Materials | Build established: Mutant 593 | -10/Materials | Discovered new exit (range 4) 713 | -10/Materials | Discovered new exit (range 16) 930 | -10/Materials | Entered another Materials area 930 | -9/Materials | Evolved 2 slots: Utility x2 1187 | -9/Materials | Self-destructed Last Messages --------------- 01030_ G-47 Trooper destroyed. 01032_ K-01 Serf cleans the Processing Tank. 01036_ G-34 Mercenary destroyed. 01038_ Acquired 48 matter. 01039_ K-01 Serf cleans the Processing Tank. 01042_ K-01 Serf collects debris. 01044_ R-06 Scavenger collects Imp. Heat Sink. 01046_ K-01 Serf collects debris. 01047_ Acquired 39 matter. 01049_ K-01 Serf collects debris. 01116_ W-16 Scout destroyed. 01124_ K-01 Serf collects debris. 01133_ R-06 Scavenger collects Sensor Array. 01139_ W-16 Scout sends out distress signal. 01157_ K-01 Serf cleans the Hadron Collector. 01169_ Lgt. Assault Rifle destroyed. 01172_ Assault Rifle destroyed. 01174_ Sensor Array destroyed. Map ----- +----------------------------------------------------+ | ?????????????????????????????????????????????????? | | ?????????????????????????????????????????????????? | | ?????????????????????????????????????????????????? | | ?????????????????????????????????????????????????? | | ?????????????????????????????????????????????????? | | ?????????????????????????????????????????????????? | | ?????????????????????????????????????????????????? | | ?????????????????????????????????????????????????? | | ?????????????????????????????????????????????????? | | ?????????????????????????????????????????????????? | | ?????????????????????????????????????????????????? | | ?????????????????????????????????????????????????? | | ?????????????????????????????????????????????????? | | ?????????????????????????????????????????????????? | | ?????????????????????????????????????????????????? | | ?????????????????????????????????????????????????? | | ?????????????????????????????????????????????????? | | ?????????????????????????????????????????????????? | | ??????????????????????????????????????????? ???? | | ??????????????????????????????????????????? #??? | | ??????????????????????????????????????????? #??? | | ???????????##?????????????????????????????# #??? | | ???????????# ??????????###########???????# #??? | | ???????????# ????????# #???????# #??? | | ???????????# ???????# #???????# #??? | | ???????????? """" #######@ #???????# ##?? | | ???????????? """" / l #???????# ??? | | ???????????? """" # #### #???????# #??? | | ????????????####??# #??# #???????+ #??? | | ????????????????? #??# #???????# #??? | | ???????????????? #??# ggb #???????# #??? | | ??????????????? #?#######g############ #??? | | ????????????? # | | ???????????? % + | | ??????????? ^ # | | ?????????# #######+######+####! """"" """"" #??? | | ?????????#??????? ??????????# """"" """"" #??? | | ????????????????? ??????????# """"" """"" #??? | | ????????????????? ??????????# #### | | ????????????????? ??????????# | | ???????????????? ??????????# """"" """"" | | ????????????????? ??????????# """"" """"" | | ?????????????????????????????# """"" """"" ### | | ?????????????????????????????# #?? | | ?????????????????????????????# #?? | | ?????????????????????????????# """"" """"" #?? | | ?????????????????????????????# """"" """"" #?? | | ??????????????????????######?# """"" """"" #?? | | ??????????????????????# ?# #?? | | ??????????????????????# """ # #?? | +----------------------------------------------------+ Best States ------------- Heat Dissipation 28 Energy Generation 10 Energy Capacity 250 Matter Stores 300 Matter Capacity 300 Sight Range 16 Robot Scan Range 14 Terrain Scan Density 10 Armor Coverage 150 Utility Shielding 33 Evasion (%) 55 Recoil Reduction 2 Item Schematics ----------------- Adv. Beam Cannon | -9/Materials | Scanalyzed Imp. Terrain Scanner | -9/Materials | Scanalyzed Robot Schematics ------------------ None Fabricated ------------ Nothing Alien Tech Used ----------------- None Achievements -------------- None Challenges ------------ None Game ------ Seed StormShadingScrapsphere Manual? 0 Play Time 00:11:49 Cumulative 77.4 hours Start 2025.03.18 @ 17:47:20 End 2025.03.18 @ 17:56:34 Sessions 1 Manual Loads 0 Difficulty Rogue Special Mode None Game No. 119 Rogue 119 Adventurer 0 Explorer 0 Win Type - Total 1 Types 1/0/0/0/0/0/0/0/0 Lore% 30 Gallery% 46 Achievement% 39 Wizard Run 0 Options --------- Layout 1 ASCII 1 Keyboard 0 Movement Numpad Keybinds 0 Fullscreen 1 Font 24/Smallcaps Map View 50x35 Zoom Use 0% Tactical HUD 1 Map Filters NONE Filters NONE Steam 1 RUN: 7427a544-74ba-447d-a42c-2ed6c450c8bc